lending/lending_fUSD_20250318
["ID","MTS","AMOUNT","RATE_DAILY","PERIOD"]
[356374897,1742339609559,-1010.64,0.00041369,12]
[356374898,1742339609568,-2051.57,0.00041369,12]
[356374899,1742339609577,-517.9,0.00041369,12]
[356374900,1742339609587,-698.57,0.00041369,12]
[356374901,1742339609596,-753.9,0.00041369,12]
[356374902,1742339609605,-810.35,0.00041369,12]
[356374903,1742339609614,-976.72,0.00041369,12]
[356374904,1742339609623,-816.08,0.00041369,12]
[356374905,1742339609633,-1763.99,0.00041369,12]
[356374906,1742339609643,-807.5,0.00041369,12]
[356374907,1742339609652,-974.77,0.00041369,12]
[356374908,1742339609661,-1119.31,0.00041369,12]
[356374909,1742339609671,-1305.41,0.00041369,12]
[356374910,1742339609680,-764.52,0.00041369,12]
[356374911,1742339609689,-1054.67,0.00041369,12]
[356374912,1742339609698,-697.71,0.00041369,12]
[356374913,1742339609708,-784.0,0.00041369,12]
[356374914,1742339609717,-636.48,0.00041369,12]
[356374915,1742339609726,-871.68,0.00041369,12]
[356374916,1742339609735,-1505.16,0.00041369,12]
[356374917,1742339609745,-3544.19,0.00041369,12]
[356374918,1742339609754,-202.3217187,0.00041369,12]
[356374919,1742339609763,-1054.74,0.00041369,12]
[356374920,1742339609903,-3375.24,0.00041369,12]
[356374921,1742339609914,-1877.16,0.00041369,12]
[356374922,1742339609924,-1691.18,0.00041369,12]
[356374923,1742339609933,-151.031817,0.00041398,120]
[356374924,1742339609943,-200.0,0.000414,120]
[356374925,1742339609952,-1657.99266,0.00041488,30]
[356374926,1742339609963,-151.031805,0.00041498,120]
[356374927,1742339609973,-1579.0,0.000416,2]
[356374928,1742339609982,-480.0,0.00041643,120]
[356374929,1742339609991,-500.0,0.00041643,120]
[356374930,1742339610001,-588.39,0.00041643,120]
[356374931,1742339610011,-500.0,0.00041643,120]
[356374932,1742339610020,-500.0,0.00041643,120]
[356374933,1742339610029,-500.0,0.00041643,2]
[356374934,1742339610038,-500.0,0.00041643,120]
[356374935,1742339610048,-512.87856266,0.00041643,120]
[356374936,1742339610057,-500.0,0.00041643,2]
[356374937,1742339610067,-500.0,0.00041643,120]
[356374938,1742339610077,-695.53,0.00041643,120]
[356374939,1742339610087,-514.62715029,0.00041643,120]
[356374940,1742339610096,-500.0,0.00041643,120]
[356374941,1742339610106,-500.0,0.00041643,120]
[356374942,1742339610115,-500.0,0.00041643,120]
[356374943,1742339610125,-514.9231066,0.00041643,120]
[356374944,1742339610135,-500.0,0.00041643,120]
[356374945,1742339610144,-500.0,0.00041643,120]
[356374946,1742339610153,-500.0,0.00041643,120]
[356374947,1742339610163,-500.0,0.00041643,120]
[356374948,1742339610172,-500.0,0.00041643,120]
[356374949,1742339610181,-500.0,0.00041643,120]
[356374950,1742339610191,-500.0,0.00041643,120]
[356374951,1742339610200,-500.0,0.00041643,120]
[356374952,1742339610210,-500.0,0.00041643,120]
[356374953,1742339610219,-500.0,0.00041643,120]
[356374954,1742339610228,-599.27,0.00041643,120]
[356374955,1742339610238,-500.0,0.00041643,120]
[356374956,1742339610247,-500.0,0.00041643,120]
[356374957,1742339610256,-675.48,0.00041643,120]
[356374958,1742339610265,-376.28081017,0.00041643,120]
[356374959,1742339610275,-500.0,0.00041643,120]
[356374960,1742339610284,-2951.2,0.00041643,120]
[356374961,1742339610294,-3587.64,0.00041643,120]
[356374962,1742339610303,-500.0,0.00041643,120]
[356374963,1742339610313,-500.0,0.00041643,120]
[356374964,1742339610322,-500.0,0.00041643,120]
[356374965,1742339610331,-500.0,0.00041643,120]
[356374966,1742339610341,-731.85,0.00041643,120]
[356374967,1742339610350,-500.0,0.00041643,120]
[356374968,1742339610359,-500.0,0.00041643,120]
[356374969,1742339610368,-500.0,0.00041643,120]
[356374970,1742339610377,-1000.25,0.00041643,120]
[356374971,1742339610386,-500.0,0.00041643,30]
[356374972,1742339610396,-500.0,0.00041643,120]
[356374973,1742339610405,-500.0,0.00041643,120]
[356374974,1742339610413,-286.58878501,0.00041643,120]
[356374975,1742339610422,-545.83377041,0.00041643,120]
[356374976,1742339610431,-500.0,0.00041643,120]
[356374977,1742339610441,-500.0,0.00041643,120]
[356374978,1742339610450,-500.0,0.00041643,120]
[356374979,1742339610459,-500.0,0.00041643,120]
[356374980,1742339610467,-549.48374032,0.00041643,120]
[356374981,1742339610476,-500.0,0.00041643,120]
[356374982,1742339610485,-500.0,0.00041643,120]
[356374983,1742339610494,-500.0,0.00041643,120]
[356374984,1742339610503,-500.0,0.00041643,120]
[356374985,1742339610512,-500.0,0.00041643,120]
[356374986,1742339610521,-500.0,0.00041643,120]
[356374987,1742339610530,-500.0,0.00041643,120]
[356374988,1742339610539,-500.0,0.00041643,120]
[356374989,1742339610548,-500.0,0.00041643,120]
[356374990,1742339610557,-500.0,0.00041643,120]
[356374991,1742339610566,-500.0,0.00041643,120]
[356374992,1742339610575,-500.0,0.00041643,120]
[356374993,1742339610584,-517.28251662,0.00041643,120]
[356374994,1742339610593,-500.0,0.00041643,120]
[356374995,1742339610602,-500.0,0.00041643,120]
[356374996,1742339610611,-517.40364782,0.00041643,120]
[356374997,1742339610620,-519.43604001,0.00041643,120]
[356374998,1742339610629,-500.0,0.00041643,120]
[356374999,1742339610639,-500.0,0.00041643,120]
[356375000,1742339610648,-525.9826265,0.00041643,120]
[356375001,1742339610657,-602.15506479,0.00041643,120]
[356375002,1742339610666,-500.0,0.00041643,120]
[356375003,1742339610675,-500.0,0.00041643,120]
[356375004,1742339610684,-464.79817627,0.00041643,120]
[356375005,1742339610694,-500.0,0.00041643,120]
[356375006,1742339610703,-527.86832673,0.00041643,120]
[356375007,1742339610712,-509.21360092,0.00041643,120]
[356375008,1742339610721,-500.0,0.00041643,120]
[356375009,1742339610731,-548.61199445,0.00041643,120]
[356375010,1742339610741,-519.46896758,0.00041643,120]
[356375011,1742339610750,-218.54214799,0.00041643,120]
[356375012,1742339610759,-556.14494216,0.00041643,120]
[356375013,1742339610768,-554.8599214,0.00041643,120]
[356375014,1742339610777,-500.0,0.00041643,120]
[356375015,1742339610786,-500.0,0.00041643,120]
[356375016,1742339610795,-500.0,0.00041643,120]
[356375017,1742339610805,-500.0,0.00041643,120]
[356375018,1742339610816,-320.55519271,0.00041643,120]
[356375019,1742339610825,-500.0,0.00041643,120]
[356375020,1742339610835,-582.98503938,0.00041643,120]
[356375021,1742339610844,-500.0,0.00041643,120]
[356375022,1742339610854,-500.0,0.00041643,120]
[356375023,1742339610863,-526.22544168,0.00041643,120]
[356375024,1742339610872,-500.0,0.00041643,120]
[356375025,1742339610881,-500.0,0.00041643,120]
[356375026,1742339610892,-500.0,0.00041643,120]
[356375027,1742339610902,-500.0,0.00041643,120]
[356375028,1742339610911,-500.0,0.00041643,120]
[356375029,1742339610920,-500.0,0.00041643,120]
[356375030,1742339610929,-500.0,0.00041643,120]
[356375031,1742339610938,-500.0,0.00041643,120]
[356375032,1742339610946,-500.0,0.00041643,120]
[356375033,1742339610955,-171.61045663,0.00041643,120]
[356375034,1742339610964,-500.0,0.00041643,2]
[356375035,1742339610973,-500.0,0.00041643,120]
[356375036,1742339610982,-4954.91,0.00041643,120]
[356375037,1742339610991,-500.0,0.00041643,120]
[356375038,1742339611001,-515.86,0.00041643,120]
[356375039,1742339611010,-1142.14,0.00041643,120]
[356375040,1742339611019,-500.0,0.00041643,120]
[356375041,1742339611027,-500.0,0.00041643,120]
[356375042,1742339611037,-1372.58,0.00041643,120]
[356375043,1742339611046,-2157.42,0.00041643,120]
[356375044,1742339611055,-500.0,0.00041643,120]
[356375045,1742339611064,-1414.54,0.00041643,120]
[356375046,1742339611073,-1247.27,0.00041643,120]
[356375047,1742339611083,-571.9,0.00041643,120]
[356375048,1742339611092,-1731.09,0.00041643,120]
[356375049,1742339611101,-500.0,0.00041643,120]
[356375050,1742339611111,-690.54,0.00041643,120]
[356375051,1742339611121,-1601.13,0.00041643,120]
[356375052,1742339611130,-647.8,0.00041643,120]
[356375053,1742339611141,-619.12,0.00041643,120]
[356375054,1742339611152,-500.0,0.00041643,120]
[356375055,1742339611162,-500.0,0.00041643,120]
[356375056,1742339611171,-657.42,0.00041643,120]
[356375057,1742339611181,-500.0,0.00041643,120]
[356375058,1742339611190,-1197.86,0.00041643,120]
[356375059,1742339611199,-500.0,0.00041643,120]
[356375060,1742339611207,-1514.57,0.00041643,120]
[356375061,1742339611217,-500.0,0.00041643,120]
[356375062,1742339611226,-500.0,0.00041643,120]
[356375063,1742339611235,-500.0,0.00041643,120]
[356375064,1742339611245,-500.0,0.00041643,120]
[356375065,1742339611254,-500.0,0.00041643,120]
[356375066,1742339611264,-500.0,0.00041643,120]
[356375067,1742339611274,-500.0,0.00041643,30]
[356375068,1742339611283,-500.0,0.00041643,120]
[356375069,1742339611293,-500.0,0.00041643,120]
[356375070,1742339611302,-500.0,0.00041643,120]
[356375071,1742339611312,-500.0,0.00041643,120]
[356375072,1742339611323,-500.0,0.00041643,120]
[356375073,1742339611333,-500.0,0.00041643,120]
[356375074,1742339611342,-500.0,0.00041643,120]
[356375075,1742339611351,-500.0,0.00041643,120]
[356375076,1742339611360,-500.0,0.00041643,120]
[356375077,1742339611370,-523.33341369,0.00041643,120]
[356375078,1742339611380,-529.97,0.00041643,2]
[356375079,1742339611389,-500.0,0.00041643,120]
[356375080,1742339611399,-500.0,0.00041643,120]
[356375081,1742339611408,-500.0,0.00041643,120]
[356375082,1742339611418,-500.0,0.00041643,120]
[356375083,1742339611427,-500.0,0.00041643,120]
[356375084,1742339611436,-500.0,0.00041643,120]
[356375085,1742339611446,-500.0,0.00041643,120]
[356375086,1742339611455,-500.0,0.00041643,120]
[356375087,1742339611465,-500.0,0.00041643,120]
[356375088,1742339611474,-500.0,0.00041643,120]
[356375089,1742339611483,-500.0,0.00041643,120]
[356375090,1742339611492,-500.0,0.00041643,120]
[356375091,1742339611502,-500.0,0.00041643,120]
[356375092,1742339611512,-500.0,0.00041643,120]
[356375093,1742339611522,-500.0,0.00041643,120]
[356375094,1742339611531,-500.0,0.00041643,120]
[356375095,1742339611540,-500.0,0.00041643,120]
[356375096,1742339611550,-307.54420992,0.00041643,120]
[356375097,1742339611559,-500.0,0.00041643,120]
[356375098,1742339611568,-500.0,0.00041643,120]
[356375099,1742339611577,-549.91687136,0.00041643,120]
[356375100,1742339611587,-500.0,0.00041643,120]
[356375101,1742339611596,-500.0,0.00041643,120]
[356375102,1742339611605,-500.0,0.00041643,120]
[356375103,1742339611614,-500.0,0.00041643,120]
[356375104,1742339611623,-500.0,0.00041643,120]
[356375105,1742339611633,-1264.5,0.00041643,120]
[356375106,1742339611642,-500.0,0.00041643,2]
[356375107,1742339611651,-500.0,0.00041643,120]
[356375108,1742339611660,-426.74151485,0.00041643,120]
[356375109,1742339611670,-500.0,0.00041643,120]
[356375110,1742339611679,-500.0,0.00041643,120]
[356375111,1742339611689,-500.0,0.00041643,120]
[356375112,1742339611698,-500.0,0.00041643,120]
[356375113,1742339611707,-500.0,0.00041643,120]
[356375114,1742339611717,-421.93,0.00041643,120]
[356375115,1742339611727,-301.63,0.00041643,120]
[356375116,1742339611737,-677.1,0.00041643,120]
[356375117,1742339611747,-538.01,0.00041643,120]
[356375118,1742339611756,-1026.81,0.00041643,120]
[356375119,1742339611766,-500.0,0.00041643,120]
[356375120,1742339611775,-1290.9,0.00041643,120]
[356375121,1742339611784,-357.4727796,0.00041643,12]
[356375122,1742339611794,-660.95,0.00041643,12]
[356375123,1742339611803,-1089.18,0.00041643,12]
[356375124,1742339611814,-1280.18,0.00041643,12]
[356375125,1742339611824,-705.65,0.00041643,12]
[356375126,1742339611834,-839.95,0.00041643,12]
[356375127,1742339611843,-586.59,0.00041643,12]
[356375128,1742339611854,-312.57854897,0.00041643,12]
[356375129,1742339611864,-659.86,0.00041643,12]
[356375130,1742339611874,-781.58,0.00041643,12]
[356375131,1742339611884,-578.43,0.00041643,12]
[356375132,1742339611895,-716.41,0.00041643,12]
[356375133,1742339611904,-875.76,0.00041643,12]
[356375134,1742339611914,-1293.1,0.00041643,12]
[356375135,1742339611923,-554.73,0.00041643,12]
[356375136,1742339611933,-183.77098774,0.00041643,12]
[356375137,1742339611942,-887.4,0.00041643,12]
[356375138,1742339611953,-933.35,0.00041643,12]
[356375139,1742339611962,-645.27,0.00041643,12]
[356375140,1742339611972,-1270.34,0.00041643,12]
[356375141,1742339611982,-635.6,0.00041643,12]
[356375142,1742339611992,-546.63,0.00041643,12]
[356375143,1742339612001,-1007.61,0.00041643,12]
[356375144,1742339612011,-616.02,0.00041643,12]
[356375145,1742339612021,-686.76,0.00041643,12]
[356375146,1742339612031,-531.32,0.00041643,12]
[356375147,1742339612040,-601.48,0.00041643,12]
[356375148,1742339612050,-567.63,0.00041643,12]
[356375149,1742339612059,-963.46,0.00041643,12]
[356375150,1742339612068,-615.18,0.00041643,12]
[356375151,1742339612078,-815.63,0.00041643,12]
[356375152,1742339612087,-500.37,0.00041643,12]
[356375153,1742339612097,-546.76,0.00041643,12]
[356375154,1742339612106,-599.5,0.00041643,12]
[356375155,1742339612115,-729.58,0.00041643,12]
[356375156,1742339612124,-922.39,0.00041643,12]
[356375157,1742339612134,-1163.14,0.00041643,12]
[356375158,1742339612143,-875.92,0.00041643,30]
[356375159,1742339612153,-750.87,0.00041643,12]
[356375160,1742339612162,-1410.05,0.00041643,12]
[356375161,1742339612172,-510.0,0.00041643,12]
[356375162,1742339612181,-541.9,0.00041643,12]
[356375163,1742339612192,-2100.21,0.00041643,12]
[356375164,1742339612201,-819.72,0.00041643,12]
[356375165,1742339612211,-633.47003338,0.00041643,12]
[356375166,1742339612220,-868.85,0.00041643,12]
[356375167,1742339612229,-163.344036,0.00041643,12]
[356375168,1742339612240,-832.99,0.00041643,12]
[356375169,1742339612250,-1487.67,0.00041643,12]
[356375170,1742339612260,-1565.380344,0.00041643,12]
[356375171,1742339612269,-151.731954,0.00041643,12]
[356375172,1742339612279,-156.823057,0.00041643,12]
[356375173,1742339612288,-728.98,0.00041643,12]
[356375174,1742339612298,-915.45,0.00041643,12]
[356375175,1742339612307,-523.14,0.00041643,12]
[356375176,1742339612316,-415.53198,0.00041643,12]
[356375177,1742339612326,-571.54,0.00041643,12]
[356375178,1742339612336,-547.0,0.00041643,12]
[356375179,1742339612346,-1579.021524,0.00041643,12]
[356375180,1742339612355,-540.14,0.00041643,12]
[356375181,1742339612364,-507.06,0.00041643,12]
[356375182,1742339612374,-623.88507837,0.00041643,12]
[356375183,1742339612384,-1406.95,0.00041643,12]
[356375184,1742339612393,-1265.92,0.00041643,12]
[356375185,1742339612402,-583.92,0.00041643,12]
[356375186,1742339612412,-819.59,0.00041643,12]
[356375187,1742339612422,-1112.86,0.00041643,12]
[356375188,1742339612432,-849.05,0.00041643,12]
[356375189,1742339612443,-610.12,0.00041643,12]
[356375190,1742339612452,-500.0,0.00041643,12]
[356375191,1742339612461,-966.8,0.00041643,12]
[356375192,1742339612471,-562.17,0.00041643,12]
[356375193,1742339612480,-216.47917893,0.00041643,12]
[356375194,1742339612491,-565.83,0.00041643,12]
[356375195,1742339612500,-897.12,0.00041643,12]
[356375196,1742339612510,-588.08,0.00041643,12]
[356375197,1742339612519,-539.17,0.00041643,12]
[356375198,1742339612529,-956.37,0.00041643,12]
[356375199,1742339612539,-2686.86,0.00041643,12]
[356375200,1742339612548,-914.58,0.00041643,12]
[356375201,1742339612558,-1521.69,0.00041643,7]
[356375202,1742339612567,-303.08541131,0.00041643,12]
[356375203,1742339612577,-537.65,0.00041643,12]
[356375204,1742339612586,-1313.1,0.00041643,12]
[356375205,1742339612595,-894.12,0.00041643,12]
[356375206,1742339612604,-523.64,0.00041643,12]
[356375207,1742339612613,-523.91,0.00041643,12]
[356375208,1742339612623,-845.67,0.00041643,12]
[356375209,1742339612632,-1156.08,0.00041643,12]
[356375210,1742339612641,-510.37,0.00041643,12]
[356375211,1742339612650,-655.83,0.00041643,12]
[356375212,1742339612660,-1175.67,0.00041643,12]
[356375213,1742339612669,-675.44,0.00041643,12]
[356375214,1742339612678,-584.29,0.00041643,12]
[356375215,1742339612687,-1360.65,0.00041643,12]
[356375216,1742339612696,-535.37,0.00041643,12]
[356375217,1742339612706,-940.73,0.00041643,12]
[356375218,1742339612715,-661.64,0.00041643,12]
[356375219,1742339612724,-628.6,0.00041643,12]
[356375220,1742339612733,-872.38,0.00041643,12]
[356375221,1742339612744,-671.95,0.00041643,12]
[356375222,1742339612754,-589.35,0.00041643,12]
[356375223,1742339612763,-381.10368341,0.00041643,12]
[356375224,1742339612772,-185.75595479,0.00041643,12]
[356375225,1742339612781,-2111.58,0.00041643,12]
[356375226,1742339612791,-1118.44,0.00041643,12]
[356375227,1742339612801,-952.51,0.00041643,12]
[356375228,1742339612813,-1141.77,0.00041643,12]
[356375229,1742339612823,-509.9,0.00041643,12]
[356375230,1742339612832,-786.29,0.00041643,12]
[356375231,1742339612841,-885.74,0.00041643,12]
[356375232,1742339612852,-853.02,0.00041643,12]
[356375233,1742339612861,-930.16,0.00041643,12]
[356375234,1742339612871,-554.71,0.00041643,12]
[356375235,1742339612881,-534.99,0.00041643,12]
[356375236,1742339612891,-1096.04,0.00041643,12]
[356375237,1742339612900,-408.4,0.00041643,12]
[356375238,1742339612909,-669.21,0.00041643,12]
[356375239,1742339612919,-2116.57,0.00041643,12]
[356375240,1742339612928,-1273.18,0.00041643,12]
[356375241,1742339612938,-662.07,0.00041643,12]
[356375242,1742339612947,-824.59,0.00041643,12]
[356375243,1742339612956,-1001.65,0.00041643,12]
[356375244,1742339612965,-865.19,0.00041643,12]
[356375245,1742339612976,-569.57,0.00041643,12]
[356375246,1742339612986,-850.25,0.00041643,12]
[356375247,1742339612995,-2025.31,0.00041643,12]
[356375248,1742339613005,-1034.97,0.00041643,12]
[356375249,1742339613015,-1125.43,0.00041643,12]
[356375250,1742339613024,-736.13,0.00041643,12]
[356375251,1742339613033,-500.0,0.00041643,12]
[356375252,1742339613044,-705.75,0.00041643,12]
[356375253,1742339613053,-1168.81,0.00041643,12]
[356375254,1742339613063,-909.53,0.00041643,12]
[356375255,1742339613073,-1214.66,0.00041643,12]
[356375256,1742339613083,-750.56,0.00041643,12]
[356375257,1742339613092,-999.43,0.00041643,12]
[356375258,1742339613102,-912.96,0.00041643,12]
[356375259,1742339613112,-628.87,0.00041643,12]
[356375260,1742339613122,-1022.31,0.00041643,12]
[356375261,1742339613132,-664.59,0.00041643,12]
[356375262,1742339613142,-970.21,0.00041643,12]
[356375263,1742339613152,-605.69,0.00041643,12]
[356375264,1742339613162,-1253.42,0.00041643,12]
[356375265,1742339613172,-1388.92,0.00041643,12]
[356375266,1742339613181,-381.98316168,0.00041643,12]
[356375267,1742339613191,-1024.33,0.00041643,12]
[356375268,1742339613200,-603.22,0.00041643,12]
[356375269,1742339613210,-747.21,0.00041643,12]
[356375270,1742339613220,-1242.02,0.00041643,12]
[356375271,1742339613229,-843.17,0.00041643,12]
[356375272,1742339613239,-535.11,0.00041643,12]
[356375273,1742339613249,-532.91,0.00041643,12]
[356375274,1742339613258,-536.51,0.00041643,7]
[356375275,1742339613268,-864.22,0.00041643,12]
[356375276,1742339613277,-1425.59,0.00041643,12]
[356375277,1742339613287,-838.26,0.00041643,12]
[356375278,1742339613296,-1035.77,0.00041643,12]
[356375279,1742339613305,-1119.9,0.00041643,12]
[356375280,1742339613315,-940.64,0.00041643,12]
[356375281,1742339613324,-757.19,0.00041643,12]
[356375282,1742339613333,-1602.15,0.00041643,12]
[356375283,1742339613343,-1002.8,0.00041643,12]
[356375284,1742339613353,-1198.43,0.00041643,12]
[356375285,1742339613362,-1331.13,0.00041643,12]
[356375286,1742339613372,-649.81,0.00041643,12]
[356375287,1742339613381,-999.15,0.00041643,12]
[356375288,1742339613391,-2598.97,0.00041643,12]
[356375289,1742339613401,-3644.21,0.00041643,12]
[356375290,1742339613411,-1387.99,0.00041643,12]
[356375291,1742339613420,-843.24,0.00041643,12]
[356375292,1742339613430,-2465.62,0.00041643,12]
[356375293,1742339613439,-975.0,0.00041643,12]
[356375294,1742339613449,-609.77,0.00041643,12]
[356375295,1742339613459,-974.58,0.00041643,12]
[356375296,1742339613468,-1078.91,0.00041643,12]
[356375297,1742339613478,-2236.78,0.00041643,12]
[356375298,1742339613487,-1919.16,0.00041643,12]
[356375299,1742339613497,-2066.04,0.00041643,12]
[356375300,1742339613506,-1744.56,0.00041643,12]
[356375301,1742339613515,-924.09,0.00041643,12]
[356375302,1742339613524,-965.89,0.00041643,12]
[356375303,1742339613534,-2170.13,0.00041643,7]
[356375304,1742339613543,-630.53,0.00041643,12]
[356375305,1742339613553,-4236.85,0.00041643,12]
[356375306,1742339613562,-701.55,0.00041643,12]
[356375307,1742339613572,-2364.63,0.00041643,12]
[356375308,1742339613581,-2071.16,0.00041643,12]
[356375309,1742339613591,-940.24,0.00041643,12]
[356375310,1742339613600,-1084.3,0.00041643,12]
[356375311,1742339613610,-833.55,0.00041643,12]
[356375312,1742339613619,-1166.33,0.00041643,12]
[356375313,1742339613629,-1018.16,0.00041643,12]
[356375314,1742339613638,-3791.02,0.00041643,12]
[356375315,1742339613647,-591.18,0.00041643,12]
[356375316,1742339613657,-722.87,0.00041643,12]
[356375317,1742339613667,-627.35,0.00041643,12]
[356375318,1742339613676,-433.99,0.00041643,12]
[356375319,1742339613685,-2218.35,0.00041643,12]
[356375320,1742339613694,-2207.71,0.00041643,12]
[356375321,1742339613704,-1038.13,0.00041643,12]
[356375322,1742339613713,-7286.97,0.00041643,2]
[356375323,1742339613723,-4093.1,0.00041643,12]
[356375324,1742339613733,-662.54,0.00041643,12]
[356375325,1742339613744,-617.61,0.00041643,12]
[356375326,1742339613755,-884.25,0.00041643,12]
[356375327,1742339613765,-590.8,0.00041643,12]
[356375328,1742339613775,-568.35,0.00041643,12]
[356375329,1742339613785,-2314.16,0.00041643,12]
[356375330,1742339613795,-1249.76,0.00041643,12]
[356375331,1742339613805,-605.74,0.00041643,12]
[356375332,1742339613817,-4019.27,0.00041643,12]
[356375333,1742339613827,-845.44,0.00041643,12]
[356375334,1742339613837,-1263.79,0.00041643,12]
[356375335,1742339613846,-722.51,0.00041643,12]
[356375336,1742339613857,-582.04,0.00041643,12]
[356375337,1742339613868,-1473.86,0.00041643,12]
[356375338,1742339613879,-1361.67,0.00041643,12]
[356375339,1742339613890,-841.11,0.00041643,12]
[356375340,1742339613900,-1912.63,0.00041643,12]
[356375341,1742339613910,-713.87,0.00041643,12]
[356375342,1742339613920,-714.31,0.00041643,12]
[356375343,1742339613930,-635.53,0.00041643,12]
[356375344,1742339613940,-1883.04,0.00041643,12]
[356375345,1742339613950,-5988.8,0.00041643,12]
[356375346,1742339613960,-2180.97,0.00041643,10]
[356375347,1742339613971,-1955.72,0.00041643,12]
[356375348,1742339613980,-6906.57,0.00041643,12]
[356375349,1742339613991,-2131.38,0.00041643,12]
[356375350,1742339614000,-713.4,0.00041643,12]
[356375351,1742339614010,-1357.37,0.00041643,12]
[356375352,1742339614020,-758.94,0.00041643,12]
[356375353,1742339614029,-517.02,0.00041643,12]
[356375354,1742339614038,-1496.75,0.00041643,12]
[356375355,1742339614048,-1214.53,0.00041643,12]
[356375356,1742339614058,-2414.38,0.00041643,12]
[356375357,1742339614067,-1375.9,0.00041643,12]
[356375358,1742339614077,-1974.79,0.00041643,12]
[356375359,1742339614086,-925.56,0.00041643,12]
[356375360,1742339614096,-712.94,0.00041643,12]
[356375361,1742339614105,-1067.84,0.00041643,12]
[356375362,1742339614115,-839.12,0.00041643,12]
[356375363,1742339614125,-767.88,0.00041643,12]
[356375364,1742339614134,-1426.33,0.00041643,12]
[356375365,1742339614144,-1432.86,0.00041643,12]
[356375366,1742339614154,-780.68,0.00041643,12]
[356375367,1742339614164,-1216.8,0.00041643,12]
[356375368,1742339614174,-1487.69,0.00041643,12]
[356375369,1742339614183,-1708.8,0.00041643,12]
[356375370,1742339614193,-622.13420969,0.00041643,12]
[356375371,1742339614203,-913.22,0.00041643,12]
[356375372,1742339614213,-1017.99,0.00041643,12]
[356375373,1742339614223,-1929.03,0.00041643,12]
[356375374,1742339614233,-2290.36,0.00041643,12]
[356375375,1742339614243,-902.37,0.00041643,12]
[356375376,1742339614253,-1430.23,0.00041643,12]
[356375377,1742339614263,-1072.64,0.00041643,12]
[356375378,1742339614273,-674.04,0.00041643,12]
[356375379,1742339614283,-1638.63,0.00041643,12]
[356375380,1742339614293,-1760.11,0.00041643,12]
[356375381,1742339614303,-1045.11,0.00041643,12]
[356375382,1742339614313,-682.57,0.00041643,12]
[356375383,1742339614323,-794.12,0.00041643,12]
[356375384,1742339614333,-500.0,0.00041643,12]
[356375385,1742339614343,-1729.5,0.00041643,12]
[356375386,1742339614353,-1395.45,0.00041643,12]
[356375387,1742339614363,-1432.26,0.00041643,12]
[356375388,1742339614372,-1231.14,0.00041643,12]
[356375389,1742339614383,-1130.18,0.00041643,12]
[356375390,1742339614393,-1071.53,0.00041643,12]
[356375391,1742339614403,-10881.54,0.00041643,12]
[356375392,1742339614413,-940.53,0.00041643,12]
[356375393,1742339614423,-931.98,0.00041643,12]
[356375394,1742339614432,-643.93,0.00041643,12]
[356375395,1742339614442,-736.61,0.00041643,12]
[356375396,1742339614451,-1889.22,0.00041643,12]